bitfinex/quotes_BTCUSD_20240828
["timestamp","ask_amount","ask_price","bid_price","bid_amount"]
[1724835654117,0.00790892,59418.0,59417.0,0.1683]
[1724835655201,0.00790892,59418.0,59416.0,0.0008998]
[1724835655428,0.17720892,59418.0,59417.0,0.008]
[1724835656111,0.17720892,59418.0,59416.0,0.0008998]
[1724835656112,0.17620892,59418.0,59416.0,0.0008998]
[1724835656507,0.168302,59417.0,59416.0,0.0088998]
[1724835657185,0.17621092,59417.0,59416.0,0.0088998]
[1724835657418,0.51281492,59417.0,59416.0,0.0088998]
[1724835657643,0.51281492,59417.0,59416.0,0.0188998]
[1724835658284,0.51281492,59417.0,59416.0,0.0108998]
[1724835659188,0.51281492,59417.0,59416.0,0.0198998]
[1724835660126,0.00790892,59417.0,59416.0,0.0198998]
[1724835660563,0.17621092,59417.0,59416.0,0.0198998]
[1724835660777,0.00790892,59417.0,59416.0,0.1902038]
[1724835661005,0.02721001,59419.0,59416.0,0.1902038]
[1724835661241,0.00788443,59418.0,59417.0,0.168301]
[1724835661743,0.00788443,59418.0,59416.0,0.0218998]
[1724835661978,0.00788443,59418.0,59416.0,0.0198998]
[1724835662194,0.504906,59417.0,59416.0,0.0108998]
[1724835662452,0.504906,59417.0,59416.0,0.0008998]
[1724835662681,0.51279043,59417.0,59416.0,0.0008998]
[1724835663111,1.18599843,59417.0,59416.0,0.0088998]
[1724835663320,1.29599843,59417.0,59416.0,0.0088998]
[1724835663527,1.29599843,59417.0,59416.0,0.0008998]
[1724835663755,1.37929843,59417.0,59416.0,0.0008998]
[1724835663980,1.51994927,59417.0,59416.0,0.0108998]
[1724835664213,1.71890243,59417.0,59416.0,0.0188998]
[1724835664432,1.81890243,59417.0,59416.0,0.0188998]
[1724835664659,1.81890243,59417.0,59416.0,0.0108998]
[1724835664886,1.81890243,59417.0,59416.0,0.0198998]
[1724835665125,1.81890243,59417.0,59416.0,0.0108998]
[1724835665598,1.81890243,59417.0,59416.0,0.0038998]
[1724835665816,1.81890243,59417.0,59416.0,0.0058998]
[1724835666237,1.99245407,59417.0,59416.0,0.0068998]
[1724835666454,1.99245407,59417.0,59416.0,0.0018998]
[1724835666892,1.99245407,59417.0,59416.0,0.0028998]
[1724835666893,1.82990243,59417.0,59416.0,0.0028998]
[1724835667330,1.82390243,59417.0,59416.0,0.0018998]
[1724835667566,1.82590243,59417.0,59416.0,0.0018998]
[1724835667821,1.83490243,59417.0,59416.0,0.0028998]
[1724835668265,1.83490243,59417.0,59416.0,0.0018998]
[1724835668266,2.33081243,59417.0,59416.0,0.0018998]
[1724835668480,2.33981243,59417.0,59416.0,0.0028998]
[1724835668921,2.33981243,59417.0,59416.0,0.0008998]
[1724835668922,1.99620843,59417.0,59416.0,0.0008998]
[1724835669176,0.53279443,59417.0,59416.0,0.0018998]
[1724835669416,0.53279443,59417.0,59416.0,0.0028998]
[1724835669417,0.53879443,59417.0,59416.0,0.0028998]
[1724835669632,0.51879443,59417.0,59416.0,0.0018998]
[1724835669868,0.51879443,59417.0,59416.0,0.0038998]
[1724835670099,1.43860443,59417.0,59416.0,0.0008998]
[1724835670343,2.04327167,59417.0,59416.0,0.0018998]
[1724835670575,1.89660843,59417.0,59416.0,0.0018998]
[1724835671280,1.90460843,59417.0,59416.0,0.0018998]
[1724835671519,1.89660843,59417.0,59416.0,0.0018998]
[1724835672034,1.89660843,59417.0,59416.0,0.0008998]
[1724835672035,1.89060843,59417.0,59416.0,0.0008998]
[1724835672464,1.89060843,59417.0,59416.0,0.0018998]
[1724835673126,1.89060843,59417.0,59416.0,0.0008998]
[1724835673548,1.89360843,59417.0,59416.0,0.0008998]
[1724835673947,1.89060843,59417.0,59416.0,0.0008998]
[1724835674217,1.89360843,59417.0,59416.0,0.0008998]
[1724835674639,2.06516007,59417.0,59416.0,0.0008998]
[1724835674976,2.16216007,59417.0,59416.0,0.0008998]
[1724835675158,2.52176407,59417.0,59416.0,0.0008998]
[1724835675520,2.52576407,59417.0,59416.0,0.0008998]
[1724835675920,2.52476407,59417.0,59416.0,0.0008998]
[1724835676382,2.52676407,59417.0,59416.0,0.0008998]
[1724835676553,2.35821243,59417.0,59416.0,0.0008998]
[1724835678479,2.33521243,59417.0,59416.0,0.0008998]
[1724835679524,2.33221243,59417.0,59416.0,0.0008998]
[1724835679973,2.33521243,59417.0,59416.0,0.0008998]
[1724835680351,2.33221243,59417.0,59416.0,0.0008998]
[1724835681604,1.99560843,59417.0,59416.0,0.0008998]
[1724835682727,1.99360843,59417.0,59416.0,0.0008998]
[1724835682910,1.99560843,59417.0,59416.0,0.0008998]
[1724835683392,1.99360843,59417.0,59416.0,0.0008998]
[1724835683807,1.99560843,59417.0,59416.0,0.0008998]
[1724835684095,1.99860843,59417.0,59416.0,0.0008998]
[1724835684272,1.99560843,59417.0,59416.0,0.0008998]
[1724835684506,2.04787994,59417.0,59416.0,0.0008998]
[1724835685285,2.04587994,59417.0,59416.0,0.0008998]
[1724835685685,2.04787994,59417.0,59416.0,0.00138155]
[1724835685890,1.99560843,59417.0,59416.0,0.00138155]
[1724835686061,2.2901158,59417.0,59416.0,0.00138155]
[1724835687436,1.99860843,59417.0,59416.0,0.00138155]
[1724835689142,1.88020843,59417.0,59416.0,0.00138155]
[1724835689378,1.02270043,59417.0,59416.0,0.11638155]
[1724835689835,0.51779443,59417.0,59416.0,0.11638155]
[1724835690045,0.68609643,59417.0,59416.0,0.11638155]
[1724835690251,0.68409643,59417.0,59416.0,0.11638155]
[1724835690454,0.68109643,59417.0,59416.0,0.11638155]
[1724835691680,0.51279443,59417.0,59416.0,0.11738155]
[1724835691903,0.68109643,59417.0,59416.0,0.11738155]
[1724835693111,0.68109643,59417.0,59416.0,0.00238155]
[1724835693494,1.01770043,59417.0,59416.0,0.00238155]
[1724835693701,0.68109643,59417.0,59416.0,0.00238155]
[1724835693898,1.35430443,59417.0,59416.0,0.00238155]
[1724835696483,1.44720443,59417.0,59416.0,0.00238155]
[1724835697409,1.78380843,59417.0,59416.0,0.00238155]
[1724835697611,1.89810843,59417.0,59416.0,0.00238155]
[1724835698432,1.89810843,59417.0,59416.0,0.00138155]
[1724835698653,1.90010843,59417.0,59416.0,0.00138155]
[1724835698958,2.34271243,59417.0,59416.0,0.00138155]
[1724835699155,2.33771243,59417.0,59416.0,0.00138155]
[1724835699569,2.34271243,59417.0,59416.0,0.00138155]
[1724835700744,2.34071243,59417.0,59416.0,0.00138155]
[1724835700940,2.33771243,59417.0,59416.0,0.00138155]
[1724835701139,2.33971243,59417.0,59416.0,0.00138155]
[1724835701363,2.34271243,59417.0,59416.0,0.00138155]
[1724835704361,2.46894521,59417.0,59416.0,0.00138155]
[1724835705350,2.63749685,59417.0,59416.0,0.00138155]
[1724835707385,2.51126407,59417.0,59416.0,0.00138155]
[1724835707708,2.53426407,59417.0,59416.0,0.00138155]
[1724835709322,2.68582514,59417.0,59416.0,0.00138155]
[1724835709643,2.53426407,59417.0,59416.0,0.00138155]
[1724835709841,2.68582514,59417.0,59416.0,0.00138155]
[1724835710384,3.02242914,59417.0,59416.0,0.00138155]
[1724835710808,3.02242914,59417.0,59416.0,5.5e-07]
[1724835710809,3.20747207,59417.0,59416.0,5.5e-07]
[1724835711213,1.273009,59397.0,59396.0,0.50540786]
[1724835711424,1.777919,59397.0,59396.0,0.50540786]
[1724835711791,0.168392,59385.0,59384.0,0.0189]
[1724835712165,0.168392,59385.0,59384.0,0.1331]
[1724835712166,0.505177,59385.0,59384.0,0.1331]
[1724835712350,0.51302052,59385.0,59384.0,0.1331]
[1724835712562,0.51302052,59385.0,59384.0,0.1351]
[1724835712563,0.00784352,59385.0,59384.0,0.1351]
[1724835712985,0.168382,59389.0,59385.0,0.168392]
[1724835713291,0.336756,59391.0,59387.0,0.1134]
[1724835713292,0.168384,59388.0,59387.0,0.1134]
[1724835713561,0.19478484,59389.0,59387.0,0.1134]
[1724835713787,0.168384,59388.0,59387.0,0.1134]
[1724835714030,0.19478584,59389.0,59387.0,0.1134]
[1724835714284,0.00784352,59388.0,59387.0,0.1134]
[1724835714740,0.00784352,59388.0,59387.0,0.282787]
[1724835715201,0.00784352,59388.0,59387.0,0.281787]
[1724835715910,0.00884352,59388.0,59387.0,0.627561]
[1724835716370,0.02640384,59389.0,59388.0,0.168384]
[1724835716856,0.03424736,59389.0,59388.0,0.168384]
[1724835717808,0.03424736,59389.0,59388.0,0.167384]
[1724835718278,0.03424736,59389.0,59388.0,0.166384]
[1724835718512,0.03524736,59389.0,59388.0,0.170384]
[1724835718969,0.00884352,59389.0,59388.0,0.004]
[1724835719190,0.00884352,59389.0,59388.0,0.016]
[1724835722341,0.03524756,59389.0,59388.0,0.186384]
[1724835722652,0.03524756,59389.0,59388.0,0.97862]
[1724835722901,0.03524756,59389.0,59388.0,0.99552]
[1724835723132,0.02740404,59389.0,59388.0,0.99552]
[1724835723851,0.02740404,59389.0,59388.0,0.305084]
[1724835724557,0.03522602,59389.0,59388.0,0.641852]
[1724835725030,0.03522602,59389.0,59388.0,0.305084]
[1724835725261,0.02740404,59389.0,59388.0,0.305084]
[1724835725513,0.03522602,59389.0,59388.0,0.305084]
[1724835725760,0.02740404,59389.0,59388.0,0.305084]
[1724835725972,0.02740404,59389.0,59388.0,0.641852]
[1724835726198,0.02740404,59389.0,59388.0,0.97862]
[1724835726675,0.02740404,59389.0,59388.0,1.332288]
[1724835727641,0.02740404,59389.0,59388.0,1.320288]
[1724835727884,0.02640404,59389.0,59388.0,1.328288]
[1724835728373,0.02740404,59389.0,59388.0,1.328288]
[1724835728605,0.02640404,59389.0,59388.0,1.316288]
[1724835728851,0.02640404,59389.0,59388.0,1.344288]
[1724835728852,0.02840404,59389.0,59388.0,1.344288]
[1724835729098,0.002,59389.0,59388.0,1.344288]
[1724835730295,0.002,59389.0,59388.0,1.3451878]
[1724835730755,0.002818,59389.0,59388.0,1.3451878]
[1724835731829,0.002818,59389.0,59388.0,2.11345377]
[1724835732069,0.12603959,59423.0,59417.0,0.1132]
[1724835732070,0.263186,59423.0,59417.0,0.1132]
[1724835732304,0.168287,59422.0,59417.0,0.281502]
[1724835732539,0.00865743,59418.0,59417.0,0.281502]
[1724835732773,0.00865743,59418.0,59417.0,0.1132]
[1724835733247,0.168304,59416.0,59415.0,0.002]
[1724835733497,0.168304,59416.0,59412.0,0.1124]
[1724835733498,0.34525543,59418.0,59412.0,0.002]
[1724835733732,0.168312,59414.0,59412.0,0.002]
[1724835734192,0.00783943,59413.0,59412.0,0.002]
[1724835734682,0.17615243,59413.0,59412.0,0.007]
[1724835734922,0.168313,59413.0,59412.0,0.007]
[1724835735142,0.17615243,59413.0,59412.0,0.007]
[1724835735389,0.51277843,59413.0,59412.0,0.007]
[1724835735609,0.51277843,59413.0,59412.0,0.009]
[1724835736070,0.51277843,59413.0,59412.0,0.018]
[1724835736323,0.84940443,59413.0,59412.0,0.018]
[1724835736555,1.38833043,59413.0,59412.0,0.018]
[1724835736777,1.38833043,59413.0,59412.0,0.009]
[1724835737229,1.38833043,59413.0,59412.0,0.02]
[1724835737683,1.38833043,59413.0,59412.0,0.009]
[1724835738164,1.38833043,59413.0,59412.0,0.01]
[1724835738390,1.38833043,59413.0,59412.0,0.019]
[1724835740955,2.1454638,59413.0,59412.0,0.019]
[1724835741656,0.168367,59394.0,59393.0,0.002]
[1724835742387,0.20260734,59394.0,59393.0,0.002]
[1724835742640,0.03424034,59394.0,59393.0,0.002]
[1724835742896,0.03424034,59394.0,59393.0,0.17037]
[1724835743593,0.02640091,59394.0,59393.0,0.17037]
[1724835743803,0.03424034,59394.0,59393.0,0.17037]
[1724835744034,0.03424034,59394.0,59393.0,0.50711]
[1724835744292,0.03424034,59394.0,59393.0,0.17937]
[1724835744527,0.03424034,59394.0,59393.0,0.17037]
[1724835744999,0.03424034,59394.0,59393.0,0.19637]
[1724835745941,0.00783943,59394.0,59393.0,0.19637]
[1724835746153,0.00783943,59394.0,59393.0,0.52011]
[1724835746435,0.168357,59398.0,59394.0,0.168365]
[1724835746646,0.02640031,59403.0,59400.0,0.1077]
[1724835746863,0.02640031,59403.0,59401.0,0.002]
[1724835747318,0.02640031,59403.0,59401.0,0.170346]
[1724835747547,0.02640031,59403.0,59401.0,0.002]
[1724835748203,0.02640031,59403.0,59402.0,0.002]
[1724835748406,0.02640031,59403.0,59402.0,0.170344]
[1724835748839,0.02640031,59403.0,59402.0,0.507033]
[1724835749304,0.16833,59407.0,59404.0,0.170338]
[1724835749967,0.258727,59408.0,59404.0,0.170338]
[1724835750207,0.0904,59408.0,59407.0,0.002]
[1724835751212,0.258727,59408.0,59407.0,0.002]
[1724835751451,0.0904,59408.0,59407.0,0.002]
[1724835751678,0.0904,59408.0,59407.0,0.003]
[1724835751898,0.258727,59408.0,59407.0,0.003]
[1724835754884,0.02639781,59410.0,59408.0,0.002]
[1724835755359,0.02639781,59410.0,59408.0,0.170327]
[1724835755855,0.02639781,59410.0,59408.0,0.002]
[1724835756074,0.02639781,59410.0,59408.0,0.1184]
[1724835756075,0.19471981,59410.0,59408.0,0.1184]
[1724835756534,0.19671981,59410.0,59408.0,0.1184]
[1724835757017,0.19671981,59410.0,59408.0,0.002]
[1724835757459,0.168324,59409.0,59408.0,0.002]
[1724835757677,0.504973,59409.0,59408.0,0.002]
[1724835758178,0.168324,59409.0,59408.0,0.002]
[1724835758410,0.02839781,59410.0,59408.0,0.002]
[1724835758872,0.168324,59409.0,59408.0,0.002]
[1724835759093,0.169324,59409.0,59408.0,0.002]
[1724835759317,0.1761624,59409.0,59408.0,0.002]
[1724835760963,0.8494604,59409.0,59408.0,0.002]
[1724835761193,0.8494604,59409.0,59395.0,0.349725]
[1724835761194,0.1154384,59409.0,59401.0,0.002]
[1724835761414,0.425755,59408.0,59399.0,0.002]
[1724835761640,0.16835,59400.0,59399.0,0.00232129]
[1724835762313,0.17621061,59400.0,59399.0,0.00232129]
[1724835762528,0.00786061,59400.0,59399.0,0.00232129]
[1724835762985,0.00786061,59400.0,59399.0,0.01132129]
[1724835763493,0.17621061,59400.0,59399.0,0.01132129]
[1724835763711,0.00786061,59400.0,59399.0,0.01132129]
[1724835764395,0.17621061,59400.0,59399.0,0.01132129]
[1724835764597,0.26611061,59400.0,59399.0,0.02132129]
[1724835770990,0.60281061,59400.0,59399.0,0.02132129]
[1724835771477,0.60281061,59400.0,59399.0,0.01932129]
[1724835771478,0.93951061,59400.0,59399.0,0.01932129]
[1724835771700,1.40937348,59400.0,59399.0,0.01932129]
[1724835771963,1.38391061,59400.0,59399.0,0.01932129]
[1724835772434,1.72061061,59400.0,59399.0,0.01932129]
[1724835772673,1.38391061,59400.0,59399.0,0.01932129]
[1724835772893,1.38391061,59400.0,59399.0,0.01032129]
[1724835773356,1.38391061,59400.0,59399.0,0.00032129]
[1724835773608,1.38391061,59400.0,59399.0,0.00132129]
[1724835773892,1.40390821,59400.0,59399.0,0.00132129]
[1724835774143,1.40390821,59400.0,59399.0,0.00032129]
[1724835774368,1.38391061,59400.0,59399.0,0.00032129]
[1724835775337,1.38691061,59400.0,59399.0,0.00032129]
[1724835775573,1.38391061,59400.0,59399.0,0.00032129]
[1724835776031,1.38691061,59400.0,59399.0,0.00032129]
[1724835778082,1.38391061,59400.0,59399.0,0.00032129]
[1724835778299,1.38691061,59400.0,59399.0,0.00032129]
[1724835779250,1.04721061,59400.0,59399.0,0.00032129]
[1724835779474,1.05021061,59400.0,59399.0,0.00032129]
[1724835780606,0.26911061,59400.0,59399.0,0.00032129]
[1724835780845,0.01086061,59400.0,59399.0,0.17067429]
[1724835781279,0.00786061,59400.0,59399.0,0.17067429]
[1724835781495,0.00886061,59400.0,59399.0,0.17067429]
[1724835781712,0.00786061,59400.0,59399.0,0.17067429]
[1724835781930,0.00786061,59400.0,59399.0,0.18067429]
[1724835782146,0.02639899,59403.0,59401.0,0.168346]
[1724835782360,0.02639899,59403.0,59401.0,0.00032129]
[1724835782361,0.168344,59402.0,59401.0,0.00032129]
[1724835782598,0.19473999,59403.0,59401.0,0.00232129]
[1724835782806,0.19473999,59403.0,59402.0,0.002]
[1724835783017,0.19473999,59403.0,59402.0,0.00232129]
[1724835784494,0.19473999,59403.0,59402.0,0.00932129]
[1724835785334,0.53142299,59403.0,59402.0,0.00932129]
[1724835785546,0.19473999,59403.0,59402.0,0.00932129]
[1724835785748,0.19473999,59403.0,59402.0,0.01532129]
[1724835785952,0.53142299,59403.0,59402.0,0.01532129]
[1724835786186,0.19473999,59403.0,59402.0,0.01532129]
[1724835786839,0.19473999,59403.0,59402.0,0.00832129]
[1724835787255,0.53142299,59403.0,59402.0,0.01432129]
[1724835787463,0.97970599,59403.0,59402.0,0.01232129]
[1724835787886,0.97970599,59403.0,59402.0,0.00632129]
[1724835788100,1.40838899,59403.0,59402.0,0.00632129]
[1724835788323,1.40838899,59403.0,59402.0,0.00532129]
[1724835788757,1.40838899,59403.0,59402.0,0.00032129]
[1724835789204,1.4162132,59403.0,59402.0,0.00032129]
[1724835789622,1.4162132,59403.0,59402.0,0.00432129]
[1724835790035,1.4192132,59403.0,59402.0,0.00432129]
[1724835790296,1.7558962,59403.0,59402.0,0.00032129]
[1724835790512,1.8588962,59403.0,59402.0,0.00032129]
[1724835790950,1.95986349,59403.0,59402.0,0.00032129]
[1724835791387,1.8788962,59403.0,59402.0,0.00032129]
[1724835791606,2.36155517,59403.0,59402.0,0.00032129]
[1724835791818,2.36455517,59403.0,59402.0,0.00032129]
[1724835792023,2.02787217,59403.0,59402.0,0.00032129]
[1724835793485,2.36455517,59403.0,59402.0,0.00032129]
[1724835793900,2.02787217,59403.0,59402.0,0.00032129]
[1724835794112,2.36455517,59403.0,59402.0,0.00032129]
[1724835794320,2.5159036,59403.0,59402.0,0.00032129]
[1724835794527,2.1792206,59403.0,59402.0,0.00032129]
[1724835794770,2.02787217,59403.0,59402.0,0.00032129]
[1724835795180,2.51589898,59403.0,59402.0,0.00032129]
[1724835795386,2.17921598,59403.0,59402.0,0.00032129]
[1724835795593,2.02787217,59403.0,59402.0,0.00032129]
[1724835795814,2.51587034,59403.0,59402.0,0.00032129]
[1724835796020,2.51587034,59403.0,59389.0,0.0008998]
[1724835796021,1.600706,59390.0,59389.0,0.0008998]
[1724835796239,2.00681337,59390.0,59389.0,0.0008998]
[1724835796470,2.01464618,59390.0,59389.0,0.0008998]
[1724835796677,2.04105474,59390.0,59389.0,0.0008998]
[1724835797093,2.1097431,59390.0,59389.0,0.0008998]
[1724835797953,2.04105474,59390.0,59389.0,0.0008998]
[1724835798580,2.04505474,59390.0,59389.0,0.0008998]
[1724835799445,1.75054737,59390.0,59389.0,0.0008998]
[1724835803458,2.04505474,59390.0,59389.0,0.0008998]
[1724835804127,2.04805474,59390.0,59389.0,0.0008998]
[1724835804341,2.21660638,59390.0,59389.0,0.0008998]
[1724835804547,2.04805474,59390.0,59389.0,0.0008998]
[1724835805666,2.04805474,59390.0,59388.0,0.0008998]
[1724835805667,1.855191,59389.0,59388.0,0.0008998]
[1724835805878,2.687441,59389.0,59388.0,0.0008998]
[1724835806090,2.69583354,59389.0,59388.0,0.0008998]
[1724835806297,2.86438518,59389.0,59388.0,0.0008998]
[1724835807140,2.86438518,59389.0,59388.0,0.0018998]
[1724835807610,2.69583354,59389.0,59388.0,0.0008998]
[1724835807824,2.69583354,59389.0,59388.0,0.0018998]
[1724835808008,2.70583354,59389.0,59388.0,0.0028998]
[1724835808222,2.70583354,59389.0,59388.0,0.0018998]
[1724835808223,2.86438518,59389.0,59388.0,0.0018998]
[1724835808657,2.86438518,59389.0,59388.0,0.0028998]
[1724835808658,3.21114718,59389.0,59388.0,0.0028998]
[1724835808867,3.21114718,59389.0,59388.0,0.0018998]
[1724835809281,3.22414718,59389.0,59388.0,0.0028998]
[1724835809717,3.20114718,59389.0,59388.0,0.0008998]
[1724835810138,1.855224,59388.0,59387.0,0.0008998]
[1724835810355,2.97838457,59388.0,59387.0,0.0008998]
[1724835810788,2.98677711,59388.0,59387.0,0.0008998]
[1724835810994,2.81822547,59388.0,59387.0,0.0008998]
[1724835811670,2.83122547,59388.0,59387.0,0.0018998]
[1724835811887,2.84122547,59388.0,59387.0,0.0028998]
[1724835812333,2.71536654,59388.0,59387.0,0.0028998]
[1724835812769,3.05213454,59388.0,59387.0,0.0028998]
[1724835813021,3.22068618,59388.0,59387.0,0.0028998]
[1724835813257,1.518636,59381.0,59364.0,0.1111]
[1724835813510,2.98480137,59381.0,59364.0,0.1111]
[1724835813716,2.99315273,59381.0,59364.0,0.1111]
[1724835813939,3.01956764,59381.0,59364.0,0.1111]
[1724835814597,3.01956764,59381.0,59380.0,0.0018998]
[1724835814598,3.02956764,59381.0,59380.0,0.0018998]
[1724835815050,3.03956764,59381.0,59380.0,0.0028998]
[1724835816394,2.70275964,59381.0,59380.0,0.0028998]
[1724835817026,2.72271352,59381.0,59380.0,0.0028998]
[1724835817246,2.87949605,59381.0,59380.0,0.0028998]
[1724835819934,2.36295164,59381.0,59380.0,0.0028998]
[1724835820152,1.95494427,59381.0,59380.0,0.0028998]
[1724835820601,1.76354027,59381.0,59380.0,0.0028998]
[1724835820851,1.74354027,59381.0,59380.0,0.0008998]
[1724835821093,1.92194427,59381.0,59380.0,0.0018998]
[1724835821323,1.92694427,59381.0,59380.0,0.0018998]
[1724835821544,1.91194427,59381.0,59380.0,0.0008998]
[1724835822006,1.91694427,59381.0,59380.0,0.0008998]
[1724835822468,1.92094427,59381.0,59380.0,0.0008998]
[1724835822688,2.20645164,59381.0,59380.0,0.0008998]
[1724835822905,2.20945164,59381.0,59380.0,0.0008998]
[1724835823335,2.20645164,59381.0,59380.0,0.0008998]
[1724835823771,2.20845164,59381.0,59380.0,0.0008998]
[1724835823994,2.21245164,59381.0,59380.0,0.0008998]
[1724835825994,2.21045164,59381.0,59380.0,0.0008998]
[1724835826450,1.91794427,59381.0,59380.0,0.0008998]
[1724835826699,1.48793627,59381.0,59380.0,0.0008998]
[1724835826935,1.38593627,59381.0,59380.0,0.0008998]
[1724835827122,1.38293627,59381.0,59380.0,0.0008998]
[1724835827346,1.38593627,59381.0,59380.0,0.0008998]
[1724835827801,1.38193627,59381.0,59380.0,0.0008998]
[1724835828290,1.38393627,59381.0,59380.0,0.0008998]
[1724835829482,0.54191627,59381.0,59380.0,0.1153998]
[1724835829696,0.71032027,59381.0,59380.0,0.1153998]
[1724835829922,1.38393627,59381.0,59380.0,0.0008998]
[1724835830138,1.72074427,59381.0,59380.0,0.0008998]
[1724835830351,1.71874427,59381.0,59380.0,0.0008998]
[1724835830872,1.72074427,59381.0,59380.0,0.0148998]
[1724835831090,1.71974427,59381.0,59380.0,0.0088998]
[1724835831302,1.72174427,59381.0,59380.0,0.0088998]
[1724835831982,1.72474427,59381.0,59380.0,0.0088998]
[1724835832172,1.71874427,59381.0,59380.0,0.0008998]
[1724835834148,1.72074427,59381.0,59380.0,0.0008998]
[1724835836028,1.71874427,59381.0,59380.0,0.0008998]
[1724835837293,1.72074427,59381.0,59380.0,0.0008998]
[1724835840402,1.82664427,59381.0,59380.0,0.0008998]
[1724835842066,1.82464427,59381.0,59380.0,0.0008998]
[1724835842474,1.82464427,59381.0,59380.0,0.0018998]
[1724835842888,1.71874427,59381.0,59380.0,0.0018998]
[1724835843088,1.71874427,59381.0,59380.0,0.0008998]
[1724835844067,1.72074427,59381.0,59380.0,0.0008998]
[1724835845474,1.81974647,59381.0,59380.0,0.0008998]
[1724835845672,1.71874427,59381.0,59380.0,0.0008998]
[1724835846111,1.71956227,59381.0,59380.0,0.0008998]
[1724835846314,1.72056227,59381.0,59380.0,0.0008998]
[1724835846539,1.72056227,59381.0,59380.0,0.00338983]
[1724835846743,1.71956227,59381.0,59380.0,0.00538983]
[1724835847151,1.71956227,59381.0,59380.0,0.00438983]
[1724835847606,1.84581503,59381.0,59380.0,0.00338983]
[1724835848027,1.84881503,59381.0,59380.0,0.00338983]
[1724835848233,1.9667473,59381.0,59380.0,0.00338983]
[1724835848463,1.95709454,59381.0,59380.0,0.00338983]
[1724835848690,2.55075418,59381.0,59380.0,0.00338983]
[1724835848905,2.80225749,59381.0,59380.0,0.00338983]
[1724835849118,2.80325749,59381.0,59380.0,0.00338983]
[1724835849327,2.67475418,59381.0,59380.0,0.00338983]
[1724835849544,2.67375418,59381.0,59380.0,0.00338983]
[1724835849815,2.67475418,59381.0,59380.0,0.00338983]
[1724835850228,2.85175495,59381.0,59380.0,0.00338983]
[1724835850439,2.89762991,59381.0,59380.0,0.00338983]
[1724835850649,2.68320331,59381.0,59380.0,0.00338983]
[1724835850859,2.68220331,59381.0,59380.0,0.00338983]
[1724835851107,2.68520331,59381.0,59380.0,0.00338983]
[1724835851309,2.68220331,59381.0,59380.0,0.00338983]
[1724835851621,2.69320331,59381.0,59380.0,0.00438983]
[1724835851819,2.68220331,59381.0,59380.0,0.00338983]
[1724835852278,2.69220331,59381.0,59380.0,0.00438983]
[1724835853059,2.69520331,59381.0,59380.0,0.00438983]
[1724835853470,2.69220331,59381.0,59380.0,0.00438983]
[1724835853987,2.69920331,59381.0,59380.0,0.00538983]
[1724835855831,2.85086351,59381.0,59380.0,0.00538983]
[1724835856246,2.69920331,59381.0,59380.0,0.00538983]
[1724835856478,2.84386351,59381.0,59380.0,0.00438983]
[1724835856889,2.69620331,59381.0,59380.0,0.00438983]
[1724835857102,2.69620331,59381.0,59380.0,0.00338983]
[1724835857103,2.68620331,59381.0,59380.0,0.00338983]
[1724835857511,2.69220331,59381.0,59380.0,0.00338983]
[1724835859906,2.86075495,59381.0,59380.0,0.00338983]
[1724835860795,2.69220331,59381.0,59380.0,0.00338983]
[1724835861843,2.69220331,59381.0,59380.0,0.00338984]
[1724835862248,2.69220331,59381.0,59380.0,0.00338985]
[1724835863714,3.02901131,59381.0,59380.0,0.00338985]
[1724835864706,3.19964153,59381.0,59380.0,0.00338985]
[1724835864914,3.19756295,59381.0,59380.0,0.00338985]
[1724835865894,3.19356295,59381.0,59380.0,0.00338985]
[1724835866331,3.20756295,59381.0,59380.0,0.00438985]
[1724835866537,2.87282879,59381.0,59380.0,0.00438985]
[1724835866759,2.85282879,59381.0,59380.0,0.00338985]
[1724835866974,2.69620331,59381.0,59380.0,0.00438985]
[1724835867170,2.71020331,59381.0,59380.0,0.00438985]
[1724835867399,2.69620331,59381.0,59380.0,0.00438985]
[1724835867626,2.69620331,59381.0,59380.0,0.00338986]
[1724835867834,2.69520331,59381.0,59380.0,0.00438986]
[1724835868248,2.70920331,59381.0,59380.0,0.00438986]
[1724835868457,2.69520331,59381.0,59380.0,0.00438986]
[1724835869560,2.68220331,59381.0,59380.0,0.00338986]
[1724835869771,3.18756295,59381.0,59380.0,0.00338986]
[1724835869977,2.87775495,59381.0,59380.0,0.00438986]
[1724835870187,2.86375495,59381.0,59380.0,0.00438986]
[1724835870427,2.85075495,59381.0,59380.0,0.00338986]
[1724835870652,2.87775495,59381.0,59380.0,0.00438986]
[1724835870867,2.86375495,59381.0,59380.0,0.00438986]
[1724835871090,2.86475495,59381.0,59380.0,0.00338986]
[1724835871316,3.18756295,59381.0,59380.0,0.00338986]
[1724835871747,3.20156295,59381.0,59380.0,0.00338986]
[1724835871957,3.02460514,59381.0,59380.0,0.00338986]
[1724835872647,3.03760514,59381.0,59380.0,0.00438986]
[1724835873014,3.02460514,59381.0,59380.0,0.00338986]
[1724835873462,3.03760514,59381.0,59380.0,0.00438986]
[1724835874661,3.20823062,59381.0,59380.0,0.00438986]
[1724835874864,3.03760514,59381.0,59380.0,0.00438986]
[1724835875527,3.03760514,59381.0,59380.0,0.00438987]
[1724835875887,3.05343457,59381.0,59380.0,0.00438987]
[1724835876318,3.38707667,59381.0,59380.0,8.7e-07]
[1724835876731,3.05026867,59381.0,59380.0,8.7e-07]
[1724835876937,1.855537,59378.0,59365.0,0.50540786]
[1724835877149,1.784037,59378.0,59375.0,0.1098]
[1724835877363,1.72569412,59378.0,59375.0,0.1098]
[1724835877585,1.91091761,59378.0,59375.0,0.1098]
[1724835877801,2.0119744,59378.0,59375.0,0.1098]
[1724835878205,2.0219744,59378.0,59377.0,0.0018987]
[1724835878407,2.0339744,59378.0,59377.0,0.0018987]
[1724835878631,2.0219744,59378.0,59377.0,0.0018987]
[1724835878963,2.0229744,59378.0,59377.0,0.0018987]
[1724835879690,2.0459744,59378.0,59377.0,0.0018987]
[1724835880215,1.91799917,59378.0,59377.0,0.0008987]
[1724835880407,1.91799917,59378.0,59377.0,0.0018987]
[1724835881189,1.91799917,59378.0,59377.0,0.0008987]
[1724835881466,1.91799917,59378.0,59377.0,0.0018987]
[1724835882349,1.91699917,59378.0,59377.0,0.0018987]
[1724835882773,1.91699917,59378.0,59377.0,0.0008987]
[1724835882981,1.91699917,59378.0,59377.0,0.0018987]
[1724835883594,1.91699917,59378.0,59377.0,0.0008987]
[1724835883809,1.91799917,59378.0,59377.0,0.0018987]
[1724835884233,1.91699917,59378.0,59377.0,0.0018987]
[1724835884442,1.91799917,59378.0,59377.0,0.0008987]
[1724835884647,1.91799917,59378.0,59377.0,0.0018987]
[1724835884852,1.91699917,59378.0,59377.0,0.0018987]
[1724835885070,1.91703755,59378.0,59377.0,0.0028987]
[1724835885686,1.81594238,59378.0,59377.0,0.0028987]
[1724835886515,1.81594238,59378.0,59377.0,0.0018987]
[1724835886727,1.81594238,59378.0,59377.0,0.0008987]